Cogmind - Beta 12 @@@ ROGUE MODE // 2024.02.01 @ 15:47:19 Player: puppuppit Result: Core destroyed Performance ------------- Evolutions (3) 1500 Regions Visited (11) 2200 Robots Destroyed (94) 470 Value Destroyed (3066) 3066 Prototype IDs (35) 700 Alien Tech Used (0) 0 Bonus (1863) 1863 TOTAL SCORE: 9799 Bonus ------- High Alert Combat Kills 555 Follower Combat Kills 489 Entered Garrisons 200 Entered DSFs 500 Aligned with FarCom 300 Friendly Fire -181 Cogmind --------- Core Integrity 0/700 Matter 300/300 Energy 30/100 System Corruption 0% Temperature Cool (30) Movement Core (50) Location -7/DSF Parts ------- > --- POWER (1) -------- (None) > --- PROPULSION (4) --- (None) > --- UTILITY (6) ------ Advanced Weight Redist. System Enhanced Optical Array > --- WEAPON (2) ------- (None) > --- INVENTORY (5) ---- Fission Core Authchip [R/NC] Authchip [Propulsion] YOLO Cannon Peak State ------------ > --- POWER ------------ Improved Ion Engine > --- PROPULSION ------- Cesium-ion Thruster Cesium-ion Thruster Cesium-ion Thruster Improved VTOL Module > --- UTILITY ---------- Advanced Heat Sink Small Storage Unit Advanced Weight Redist. System Particle Charger > --- WEAPON ----------- YOLO Cannon > --- INVENTORY -------- Improved Ion Engine Flight Unit Authchip [R/NC] Authchip [Propulsion] Precision Beam Rifle Assault Cannon [Rating: 48] Favorites ----------- Power Light Nuclear Core Engine Improved Ion Engine Power Core Light Nuclear Core Propulsion Hover Unit Wheel Wheel Hover Unit Hover Unit Flight Unit Flight Unit Utility Small Storage Unit Device Advanced Heat Sink Storage Small Storage Unit Processor Signal Interpreter Hackware Hacking Suite Protection Improved Light Armor Plating Weapon Slug Cannon Energy Gun Precision Beam Rifle Energy Cannon YOLO Cannon Ballistic Gun Enhanced Autogun Ballistic Cannon Slug Cannon Launcher Grenade Launcher Build | -11 -10 -10 -9 -9 -9 -8 -8 -8 -8 -7 -7 ------- Run | Jun Mat Min Mat Min Exi Min Mat Sto Gar Fac DSF Slots Evolved 6 | . . . 2 . . . 2 . . 2 . Power . | . . . . . . . . . . . . Propulsion 2 | . . . 2 . . . . . . . . Utility 4 | . . . . . . . 2 . . 2 . Weapon . | . . . . . . . . . . . . Parts Attached 107 | 9 22 4 3 1 2 5 33 3 21 . 4 Power 24 | 2 4 2 1 . 1 . 6 1 6 . 1 Engine 17 | 2 3 1 . . . . 3 1 6 . 1 Core 7 | . 1 1 1 . 1 . 3 . . . . Reactor . | . . . . . . . . . . . . Propulsion 35 | 3 12 1 2 . . . 10 1 6 . . Treads . | . . . . . . . . . . . . Leg . | . . . . . . . . . . . . Wheel 6 | 3 . . . . . . 3 . . . . Hover 15 | . 12 1 2 . . . . . . . . Flight 14 | . . . . . . . 7 1 6 . . Utility 18 | 2 2 . . . 1 1 7 . 4 . 1 Device 7 | 1 . . . . . . 3 . 3 . . Storage 2 | 1 . . . . . . 1 . . . . Processor 4 | . 2 . . . 1 . . . . . 1 Hackware 1 | . . . . . . 1 . . . . . Protection 4 | . . . . . . . 3 . 1 . . Artifact . | . . . . . . . . . . . . Weapon 30 | 2 4 1 . 1 . 4 10 1 5 . 2 Energy Gun 6 | 2 . . . . . . 2 . 1 . 1 Energy Cannon 6 | . 1 . . . . . 3 . 2 . . Ballistic Gun 1 | . . . . . . . 1 . . . . Ballistic Cannon 10 | . . . . 1 . 2 3 1 2 . 1 Launcher 7 | . 3 1 . . . 2 1 . . . . Special Weapon . | . . . . . . . . . . . . Impact Weapon . | . . . . . . . . . . . . Slashing Weapon . | . . . . . . . . . . . . Piercing Weapon . | . . . . . . . . . . . . Special Melee Weapon . | . . . . . . . . . . . . Unidentified Prototypes 5 | . . . . . . . 4 1 . . . Parts Lost 23 | . . 1 . 1 . 3 1 . 7 . 10 Power 4 | . . 1 . . . . . . 2 . 1 Propulsion 13 | . . . . 1 . 3 1 . 4 . 4 Utility 4 | . . . . . . . . . 1 . 3 Weapon 2 | . . . . . . . . . . . 2 Highest Loss Streak 10 | . . 1 . 1 . 2 1 . 2 . 10 To Critical Strikes . | . . . . . . . . . . . . Average Slot Usage (%) 81 | . 91 84 88 98 77 52 74 100 87 76 57 Engine 6 | . 13 9 . . . . 3 9 8 7 3 Core 2 | . . . 11 11 11 4 2 . . . . Wheel 4 | . 2 . . . . . 17 . . . . Hover 11 | . 24 28 33 42 33 18 . . . . . Flight 13 | . . . . . . . 6 36 34 30 18 Device 9 | . . . . . . . 8 18 21 23 15 Storage 9 | . 14 14 11 11 11 11 9 9 5 . . Processor 4 | . 13 14 11 11 11 4 . . . . 3 Hackware 3 | . . . . . . 6 9 9 2 . . Protection 1 | . . . . . . . 4 . 1 7 7 Energy Gun 2 | . 1 . . . . . 4 9 4 . 3 Energy Cannon 1 | . 7 . . . . . . . 3 7 . Ballistic Cannon 5 | . . . . 8 11 7 6 9 5 . 3 Launcher 4 | . 11 17 22 13 . . 1 . . . . Naked Turns . | . . . . . . . . . . . . Heaviest Build 30 | 14 14 12 17 21 21 17 26 21 30 30 20 Greatest Support 30 | 26 20 12 24 24 18 18 30 26 29 19 28 Greatest Overweight (x) 2 | . 2 . . 1 1 1 2 . 1 1 . Average Overweight (x) . | . . . . . . . . . . 1 . Largest Inventory Capacity 8 | 8 8 8 8 8 8 8 8 8 8 5 5 Average Capacity 7 | 7 8 8 8 8 8 8 8 8 6 5 5 Most Carried 8 | 5 8 8 7 7 8 8 8 8 8 5 5 Average Carried 7 | 2 7 7 6 6 7 7 7 7 6 5 4 Final Capacity 8 | 8 8 8 8 8 8 8 8 8 5 5 5 Final Carried 8 | 5 8 8 6 7 8 8 8 8 5 5 5 Class Distribution -------------------- 44% | Mutant 35% | Scavenger-Mutant 19% | Scavenger-Sprinter Dominant Class ---------------- Mutant | -10/Materials Mutant | -10/Mines Mutant | -9/Materials Scavenger-Mutant | -9/Mines Mutant | -9/Exiles Mutant | -8/Mines Scavenger-Mutant | -8/Materials Scavenger-Sprinter | -8/Storage Scavenger-Mutant | -8/Garrison Scavenger-Mutant | -7/Factory Scavenger-Mutant | -7/DSF Resources | -11 -10 -10 -9 -9 -9 -8 -8 -8 -8 -7 -7 ----------- Run | Jun Mat Min Mat Min Exi Min Mat Sto Gar Fac DSF Matter Collected 2294 | 290 155 31 . 69 . 370 581 358 440 . . Remotely . | . . . . . . . . . . . . Salvage Created 2785 | 154 297 53 . 76 . 8 768 646 731 . 52 Parts 170 | 21 25 10 . 3 . . 57 23 28 . 3 Haulers Intercepted 7 | . 2 . . . . . 3 2 . . . Recyclers Shooed 2 | . . . . . . . 1 1 . . . Parts Field Recycled . | . . . . . . . . . . . . Retrieved Matter . | . . . . . . . . . . . . Parts Self-Destructed . | . . . . . . . . . . . . Prevented . | . . . . . . . . . . . . Kills | -11 -10 -10 -9 -9 -9 -8 -8 -8 -8 -7 -7 ------- Run | Jun Mat Min Mat Min Exi Min Mat Sto Gar Fac DSF Combat Hostiles Destroyed 62 | . 2 5 . 6 . 1 20 7 20 . 1 Guns 17 | . . . . . . . 7 3 7 . . Cannons 19 | . . . . . . . 9 4 6 . . AOE 25 | . 2 5 . 6 . 1 4 . 6 . 1 Classes Destroyed 15 | 2 5 1 . 1 . . 3 . 2 . 1 Worker 5 | . 1 . . 1 . . 1 2 . . . Builder 2 | . . . . . . . 2 . . . . Tunneler 6 | 5 . . . . . . 1 . . . . Hauler 7 | . 2 . . . . . 3 2 . . . Recycler 7 | 1 1 . . 1 . . 1 3 . . . Operator 2 | . 2 . . . . . . . . . . Watcher 5 | . 3 . . . . . 2 . . . . Swarmer 20 | . . 3 . 4 . 1 11 1 . . . Grunt 21 | . 2 2 . . . . 2 2 13 . . Brawler 3 | . . . . . . . 1 2 . . . Duelist 1 | . . . . . . . . . 1 . . Sentry 12 | . . . . . . . 6 2 4 . . Hunter 2 | . . . . . . . . . 2 . . Heavy 1 | . . . . . . . . . . . 1 Assembled 2 | . . . . 2 . . . . . . . Best Kill Streak 11 | 6 2 3 . 6 . 1 7 11 3 . 1 Combat Bots Only 7 | . 2 3 . 4 . 1 7 2 3 . 1 Max Kills in Single Turn 5 | 1 2 1 . 5 . 1 4 2 2 . 1 Gunslinging . | . . . . . . . . . . . . Exploded 4 | . 1 1 . 3 . 1 4 . 2 . 1 Melee . | . . . . . . . . . . . . Uniques/NPCs Destroyed . | . . . . . . . . . . . . Combat | -11 -10 -10 -9 -9 -9 -8 -8 -8 -8 -7 -7 -------- Run | Jun Mat Min Mat Min Exi Min Mat Sto Gar Fac DSF Damage Taken 3012 | . 33 93 44 73 . 282 400 67 846 . 1174 Core 1144 | . 19 16 . . . 183 32 . 173 . 721 Absorbed by Shields 31 | . . . . . . . . . 31 . . Redirected to Shielding 70 | . . . . . . . . . 6 . 64 Regen/Repaired (Parts) 39 | . . . . . . . 25 14 . . . Core Remaining (%) 75 | 100 . 86 . . . 54 . . 62 . . Volleys Fired 197 | 8 16 6 . 3 . 7 58 28 70 . 1 Largest 2 | 2 2 2 . 2 . 1 2 2 2 . 2 Hottest 109 | 90 100 63 . 81 . 48 109 105 105 . 109 Shots Fired 328 | 16 22 8 . 4 . 7 111 56 102 . 2 Gun 136 | 16 3 . . . . . 49 28 39 . 1 Cannon 165 | . 8 . . 1 . 6 58 28 63 . 1 Launcher 27 | . 11 8 . 3 . 1 4 . . . . Special . | . . . . . . . . . . . . Kinetic 143 | . . . . 1 . 6 55 28 52 . 1 Thermal 158 | 16 11 . . . . . 52 28 50 . 1 Explosive 27 | . 11 8 . 3 . 1 4 . . . . Electromagnetic . | . . . . . . . . . . . . Robot Hit Streak 17 | 3 8 7 . 1 . 2 4 17 9 . 2 Robot Miss Streak 4 | 2 1 2 . 1 . 4 4 2 3 . . Penetration Max 1 | . . . . . . 1 1 . . . . Secondary Targets . | . . . . . . . . . . . . Shots Hit Robots 179 | 7 15 7 . 2 . 2 54 39 51 . 2 Core Hits 126 | 7 16 6 . 10 . 3 33 19 32 . . Critical Kills 2 | . . . . . . . 1 . 1 . . Critical Parts Destroyed 2 | . . . . . . 1 1 . . . . Critical Strikes 17 | . . . . . . 1 4 7 5 . . Burn 13 | . . . . . . . 2 7 4 . . Meltdown 1 | . . . . . . . . . 1 . . Destroy 3 | . . . . . . 1 2 . . . . Melee Attacks . | . . . . . . . . . . . . Impact . | . . . . . . . . . . . . Slashing . | . . . . . . . . . . . . Piercing . | . . . . . . . . . . . . Sneak Attacks . | . . . . . . . . . . . . Combat Hostiles . | . . . . . . . . . . . . Follow-up Attacks . | . . . . . . . . . . . . Damage Inflicted 7412 | 96 664 429 . 566 . 149 2059 904 2496 . 49 Guns 1679 | 96 21 . . . . . 670 435 439 . 18 Cannons 2549 | . 121 . . . . 79 824 469 1025 . 31 Explosions 3184 | . 522 429 . 566 . 70 565 . 1032 . . Melee . | . . . . . . . . . . . . Ramming . | . . . . . . . . . . . . Kinetic 1851 | . . . . . . 79 736 469 536 . 31 Thermal 4019 | 96 142 . . 112 . . 1256 435 1960 . 18 Explosive 1542 | . 522 429 . 454 . 70 67 . . . . Electromagnetic . | . . . . . . . . . . . . Impact . | . . . . . . . . . . . . Slashing . | . . . . . . . . . . . . Piercing . | . . . . . . . . . . . . Highest Corruption 1 | . 1 1 . . . . . . . . . Average Corruption 1 | . 1 1 . . . . . . . . . Corruption Purged . | . . . . . . . . . . . . Corruption Blocked . | . . . . . . . . . . . . Effects 4 | . . 4 . . . . . . . . . Message Errors 2 | . . 2 . . . . . . . . . Energy Discharges 1 | . . 1 . . . . . . . . . Misfires 1 | . . 1 . . . . . . . . . Overload Shots . | . . . . . . . . . . . . Overflow Damage 298 | . 19 7 . 24 . . 32 2 214 . . Projectiles 162 | . . . . . . . . 2 160 . . Explosions 136 | . 19 7 . 24 . . 32 . 54 . . Melee . | . . . . . . . . . . . . Knockbacks 5 | . . . . . . . . 4 1 . . Impact . | . . . . . . . . . . . . Kinetic 4 | . . . . . . . . 3 1 . . Secondary 1 | . . . . . . . . 1 . . . Self-Inflicted Damage 274 | . 22 6 . . . 40 46 . 160 . . Shots 8 | . 1 1 . . . 1 2 . 3 . . Rammed . | . . . . . . . . . . . . Targets Rammed . | . . . . . . . . . . . . Kicked . | . . . . . . . . . . . . Crushed . | . . . . . . . . . . . . Highest Temperature 153 | 150 78 14 3 34 . 58 132 153 56 . 24 Average Temperature 35 | 59 33 7 3 18 . 26 36 87 15 . 17 Received Heat Transfer 612 | . 6 18 24 . . 117 108 36 303 . . Siege Activations . | . . . . . . . . . . . . Robots Corrupted . | . . . . . . . . . . . . Combat Hostiles . | . . . . . . . . . . . . Parts Fried . | . . . . . . . . . . . . Impact Corruptions 1 | . . . . . . . . 1 . . . Robots Melted 1 | . . . . . . . . . 1 . . Combat Hostiles 1 | . . . . . . . . . 1 . . Parts Melted 5 | . . . . . . . 1 3 1 . . Heat Transferred 6764 | 272 309 . . 150 . . 1812 1443 2741 . 37 Parts Sabotaged . | . . . . . . . . . . . . Parts Stolen . | . . . . . . . . . . . . Parts Stripped . | . . . . . . . . . . . . Power Chain Reactions . | . . . . . . . . . . . . Missiles Intercepted . | . . . . . . . . . . . . Alert | -11 -10 -10 -9 -9 -9 -8 -8 -8 -8 -7 -7 ------- Run | Jun Mat Min Mat Min Exi Min Mat Sto Gar Fac DSF Peak Influence 1458 | 30 273 256 107 277 . 142 470 762 1458 765 535 Initial 765 | . 19 28 99 41 . . 55 198 497 765 535 Average 398 | 11 107 130 104 245 . 53 191 421 931 765 508 Maximum Alert Level 4 | . 1 1 . 1 . . 2 3 4 3 2 Low Security (%) 43 | 100 74 85 100 12 . 100 55 6 . . . Level 1 21 | . 25 14 . 87 . . 36 54 . . . Level 2 13 | . . . . . . . 7 32 30 . 100 Level 3 11 | . . . . . . . . 6 35 100 . Level 4 10 | . . . . . . . . . 34 . . Level 5 . | . . . . . . . . . . . . High Security . | . . . . . . . . . . . . Max Security . | . . . . . . . . . . . . Squads Dispatched 12 | . 1 . 1 . . 1 3 4 . 1 1 Investigation 7 | . 1 . 1 . . 1 3 . . 1 . Extermination . | . . . . . . . . . . . . Reinforcement 1 | . . . . . . . . . . . 1 Assault 2 | . . . . . . . . 2 . . . Garrison 2 | . . . . . . . . 2 . . . Intercept . | . . . . . . . . . . . . Searches Triggered . | . . . . . . . . . . . . Construction Impeded . | . . . . . . . . . . . . Haulers Reinforced . | . . . . . . . . . . . . Active Scanning Responses . | . . . . . . . . . . . . Cargo Convoy Interrupts . | . . . . . . . . . . . . Stealth | -11 -10 -10 -9 -9 -9 -8 -8 -8 -8 -7 -7 --------- Run | Jun Mat Min Mat Min Exi Min Mat Sto Gar Fac DSF Distress Signals . | . . . . . . . . . . . . Communications Jammed . | . . . . . . . . . . . . Distress Signals . | . . . . . . . . . . . . Times Spotted 120 | . 6 7 2 10 . 17 27 28 22 . 1 Peak Tracking Total 8 | . 2 3 2 6 . 5 7 8 3 . 1 Tactical Retreats 8 | . . 1 . 1 . 1 3 1 1 . . Traps | -11 -10 -10 -9 -9 -9 -8 -8 -8 -8 -7 -7 ------- Run | Jun Mat Min Mat Min Exi Min Mat Sto Gar Fac DSF Traps Triggered 15 | . 4 . . . . . 1 . 10 . . Indirectly . | . . . . . . . . . . . . Trap Hack Attempts . | . . . . . . . . . . . . Triggered . | . . . . . . . . . . . . Disarmed . | . . . . . . . . . . . . Reprogrammed 6 | . 6 . . . . . . . . . . Reused 4 | . . . . . . 2 . . 2 . . Traps Extracted . | . . . . . . . . . . . . Installed 8 | . . 2 . . . 2 . . 4 . . Triggered 4 | . . . . . . 2 . . 2 . . Most Traps Carried 2 | . . 2 2 2 2 2 . . 2 . . Machines | -11 -10 -10 -9 -9 -9 -8 -8 -8 -8 -7 -7 ---------- Run | Jun Mat Min Mat Min Exi Min Mat Sto Gar Fac DSF Machines Disabled 22 | . 2 2 . 6 . . 3 1 8 . . Max in Single Turn 6 | . 1 2 . 6 . . 1 1 2 . . Garrison Relay 3 | . . . . . . . . . 3 . . Machines Repaired . | . . . . . . . . . . . . Machines Sabotaged . | . . . . . . . . . . . . Overloaded Fab Kills . | . . . . . . . . . . . . Hacking | -11 -10 -10 -9 -9 -9 -8 -8 -8 -8 -7 -7 --------- Run | Jun Mat Min Mat Min Exi Min Mat Sto Gar Fac DSF Machines Accessed 33 | . 6 . 1 1 5 1 10 4 3 2 . Terminals 23 | . 6 . 1 1 . 1 7 2 3 2 . Fabricators . | . . . . . . . . . . . . Repair Stations 2 | . . . . . . . 1 1 . . . Recycling Units 1 | . . . . . . . 1 . . . . Scanalyzers 1 | . . . . . . . 1 . . . . Garrison Access 1 | . . . . . . . . 1 . . . Total Hacks 127 | . 21 . 3 5 50 5 29 6 5 3 . Successful 84 | . 5 . 1 2 50 1 17 4 3 1 . Failed 42 | . 15 . 2 3 . 4 12 2 2 2 . Catastrophic 6 | . 1 . 1 . . . 3 . . 1 . Database Lockouts 1 | . 1 . . . . . . . . . . Manual 31 | . 8 . 3 4 1 5 8 2 . . . Terminals 64 | . 21 . 3 5 . 5 19 3 5 3 . Fabricators . | . . . . . . . . . . . . Repair Stations 4 | . . . . . . . 2 2 . . . Recycling Units 1 | . . . . . . . 1 . . . . Scanalyzers 7 | . . . . . . . 7 . . . . Garrison Access 1 | . . . . . . . . 1 . . . Terminal Hacks 71 | . 5 . 1 2 50 1 7 1 3 1 . Record 49 | . . . . . 49 . . . . . . Robot Schematic 1 | . 1 . . . . . . . . . . Robot Analysis 6 | . 1 . . 1 . . 4 . . . . Prototype ID Bank 4 | . 1 . . . . 1 2 . . . . Open Door 1 | . . . . . . . . 1 . . . Open DSF 1 | . . . . . . . . . . 1 . Branch Access Points 2 | . 1 . 1 . . . . . . . . Emergency Access Points 1 | . . . . . . . . . 1 . . Unreport Threat 1 | . . . . . . . 1 . . . . Reprogram Traps 1 | . 1 . . . . . . . . . . Zone Layout 1 | . . . . 1 . . . . . . . Patrol Navigation 1 | . . . . . . . . . 1 . . Security Stations 1 | . . . . . . . . . 1 . . EX-Prototype ID Bank 1 | . . . . . 1 . . . . . . Fabricator Hacks . | . . . . . . . . . . . . Repair Station Hacks 4 | . . . . . . . 2 2 . . . Scan Component 2 | . . . . . . . 1 1 . . . Repair 2 | . . . . . . . 1 1 . . . Recycling Unit Hacks 1 | . . . . . . . 1 . . . . Retrieve Components 1 | . . . . . . . 1 . . . . Scanalyzer 7 | . . . . . . . 7 . . . . Insert Component 3 | . . . . . . . 3 . . . . Analyze 4 | . . . . . . . 4 . . . . Garrison Access Hacks 1 | . . . . . . . . 1 . . . Unlock Access 1 | . . . . . . . . 1 . . . Unauthorized Hacks . | . . . . . . . . . . . . Terminals . | . . . . . . . . . . . . Fabricators . | . . . . . . . . . . . . Repair Stations . | . . . . . . . . . . . . Recycling Units . | . . . . . . . . . . . . Scanalyzers . | . . . . . . . . . . . . Garrison Access . | . . . . . . . . . . . . Data Cores Recovered 2 | . 2 . . . . . . . . . . Used 2 | . 2 . . . . . . . . . . Hacking Detections 25 | . 6 . 1 1 . 1 10 3 2 1 . Full Trace Events 9 | . 4 . 1 . . 1 2 . . 1 . Feedback Events 1 | . 1 . . . . . . . . . . Corruption 1 | . 1 . . . . . . . . . . Feedback Blocked . | . . . . . . . . . . . . Robot Schematics Acquired 1 | . 1 . . . . . . . . . . Robots Built . | . . . . . . . . . . . . Authchips . | . . . . . . . . . . . . Time . | . . . . . . . . . . . . Total Robot Build Rating . | . . . . . . . . . . . . Part Schematics Acquired 2 | . . . . . . . 2 . . . . Parts Built . | . . . . . . . . . . . . Authchips . | . . . . . . . . . . . . Time . | . . . . . . . . . . . . Total Part Build Rating . | . . . . . . . . . . . . Parts Repaired 2 | . . . . . . . 1 1 . . . Time 64 | . . . . . . . 38 26 . . . Parts Recycled . | . . . . . . . . . . . . Recycled Matter . | . . . . . . . . . . . . Retrieved Matter . | . . . . . . . . . . . . Retrieved Components 2 | . . . . . . . 2 . . . . Parts Scanalyzed 3 | . . . . . . . 3 . . . . Part Schematics Acquired 2 | . . . . . . . 2 . . . . Parts Damaged . | . . . . . . . . . . . . Bothacking | -11 -10 -10 -9 -9 -9 -8 -8 -8 -8 -7 -7 ------------ Run | Jun Mat Min Mat Min Exi Min Mat Sto Gar Fac DSF Used RIF Installer . | . . . . . . . . . . . . Robots Hacked . | . . . . . . . . . . . . Non-combat . | . . . . . . . . . . . . Combat . | . . . . . . . . . . . . Robot Hacks Applied . | . . . . . . . . . . . . Relay Couplers Released 13 | . . . . . . . . . 13 . . Machine Destruction 13 | . . . . . . . . . 13 . . Fabnet Peak Effective % . | . . . . . . . . . . . . Robots Rewired 4 | . . . . . . . . . 4 . . Allies Hacked . | . . . . . . . . . . . . Hacks Repelled . | . . . . . . . . . . . . Allies | -11 -10 -10 -9 -9 -9 -8 -8 -8 -8 -7 -7 -------- Run | Jun Mat Min Mat Min Exi Min Mat Sto Gar Fac DSF Total Allies 11 | . . . . 3 . . . 2 6 . . Largest Group 3 | . . . . 3 3 3 . 2 3 2 2 Highest-Rated Group 78 | . . . . 40 40 40 . 62 78 78 78 Highest-Rated Ally 39 | . . . . 16 16 16 . 31 39 39 39 Total Orders 4 | . . . . 2 . 2 . . . . . STAY 2 | . . . . 1 . 1 . . . . . FOLLOW 1 | . . . . 1 . . . . . . . AID 1 | . . . . . . 1 . . . . . Ally Attacks 81 | . . . . . . 27 . 37 17 . . Total Damage 1093 | . . . . . . 328 . 713 52 . . Kills 16 | . . . . . . 4 . 10 2 . . Allies Corrupted 1 | . . . . . . 1 . . . . . Allies Melted . | . . . . . . . . . . . . Intel | -11 -10 -10 -9 -9 -9 -8 -8 -8 -8 -7 -7 ------- Run | Jun Mat Min Mat Min Exi Min Mat Sto Gar Fac DSF Robot Analysis Total 6 | . 1 . . 1 . . 4 . . . . Derelict Logs Recovered 2 | . . 1 . 1 . . . . . . . Drone Launches . | . . . . . . . . . . . . Drone Recoveries . | . . . . . . . . . . . . Exploration | -11 -10 -10 -9 -9 -9 -8 -8 -8 -8 -7 -7 ------------- Run | Jun Mat Min Mat Min Exi Min Mat Sto Gar Fac DSF Turns Passed 4333 | 85 449 396 47 242 251 342 1069 199 1208 23 22 Spaces Moved 4785 | 49 446 603 83 402 391 427 892 176 1259 23 34 Core 306 | 1 1 . . . . 99 205 . . . . Treads . | . . . . . . . . . . . . Legs . | . . . . . . . . . . . . Wheels 666 | 48 33 . . . . . 585 . . . . Hover 2219 | . 412 603 83 402 391 328 . . . . . Flight 1594 | . . . . . . . 102 176 1259 23 34 Fastest Speed 26 | 50 56 56 48 48 52 52 29 29 26 104 27 Average Speed 59 | 84 79 56 51 51 52 64 79 31 47 104 30 Slowest Speed 189 | 90 150 56 52 112 112 100 189 32 109 104 35 Overloaded Moves . | . . . . . . . . . . . . Propulsion Burnouts . | . . . . . . . . . . . . Robots Hopped 5 | . . . . . . . . 4 1 . . Cave-ins Triggered . | . . . . . . . . . . . . Exploration Rate (%) 56 | 4 69 96 13 76 88 60 78 33 90 1 75 Regions Visited 11 Branch Regions 5 Pre-discovered Areas 2 | . . 1 . . 1 . . . . . . Known Exits Taken 8 | . 1 1 1 1 . 1 1 1 . 1 . Unknown Exits Taken 2 | 1 . . . . 1 . . . . . . Scrap Searched 3 | . . 1 . 1 . 1 . . . . . Spaces Dug . | . . . . . . . . . . . . Terrain Destroyed 461 | . 75 44 . 46 . 17 117 4 158 . . Melee . | . . . . . . . . . . . . Projectile 41 | . . . . 1 . 4 26 4 6 . . AOE 420 | . 75 44 . 45 . 13 91 . 152 . . Terrain Rammed . | . . . . . . . . . . . . Walls Destroyed . | . . . . . . . . . . . . Machines Disabled . | . . . . . . . . . . . . Actions | -11 -10 -10 -9 -9 -9 -8 -8 -8 -8 -7 -7 --------- Run | Jun Mat Min Mat Min Exi Min Mat Sto Gar Fac DSF Total 5910 | 73 523 655 86 433 439 490 1136 260 1749 22 44 Wait 497 | . 4 28 . 25 42 35 117 53 193 . . Move 4766 | 48 445 602 82 401 390 426 891 169 1256 22 34 Hop 4 | . . . . . . . . 3 1 . . Pick Up 56 | 5 14 6 1 2 1 6 11 1 8 . 1 Fast Attach 45 | 8 11 1 . . . 1 16 1 4 . 3 Attach 31 | . 4 1 3 . 2 1 9 . 11 . . Detach 26 | 1 6 1 . . 3 1 5 . 8 . 1 Swap 31 | 1 7 2 . 1 . 3 8 2 6 . 1 Drop 70 | 2 16 6 . 1 1 8 21 3 9 . 3 Fire 197 | 8 16 6 . 3 . 7 58 28 70 . 1 Melee . | . . . . . . . . . . . . Ram . | . . . . . . . . . . . . Kick . | . . . . . . . . . . . . Crush . | . . . . . . . . . . . . Escape Stasis 138 | . . . . . . . . . 138 . . Rewire 41 | . . . . . . . . . 41 . . Trap 8 | . . 2 . . . 2 . . 4 . . Miscellaneous . | . . . . . . . . . . . . Route ------- -11/Junkyard -10/Materials (discovered 3 exits: *Mat x2 / *Min) -10/Mines (discovered 2 exits: *Mat x2) -9/Materials -9/Mines (discovered 2 exits: *Mat / *Exi) -9/Exiles -8/Mines -8/Materials (discovered 2 exits: *Fac / *Sto) -8/Storage -8/Garrison (discovered 3 exits: *Fac x3) -7/Factory -7/DSF History --------- Turn | Location | Event 18 | -11/Junkyard | Discovered new exit (range 16) 86 | -11/Junkyard | Entered Materials 278 | -10/Materials | Discovered new exit (range 8) 285 | -10/Materials | Identified exit to Materials 305 | -10/Materials | Build established: Mutant 357 | -10/Materials | Identified exit to Mines 395 | -10/Materials | Discovered exit to Materials (range 16) 490 | -10/Materials | Central database locked down 535 | -10/Materials | Entered Mines 547 | -10/Mines | Met a Derelict bent on vengeance 700 | -10/Mines | Learned location of Storage (-8) 722 | -10/Mines | A weapon hastily lodged in a ceiling crevice suddenly fell to the ground 748 | -10/Mines | Discovered exit to Materials (range 13) 797 | -10/Mines | Discovered exit to Materials (range 16) 817 | -10/Mines | Received a Rocket Launcher from a helpful Derelict 824 | -10/Mines | Found a hidden stash of uninstalled traps 931 | -10/Mines | Entered Materials 931 | -9/Materials | Evolved 2 slots: Propulsion x2 944 | -9/Materials | Identified exit to Mines 978 | -9/Materials | Entered Mines 1012 | -9/Mines | Discovered new exit (range 14) 1018 | -9/Mines | Identified exit to Materials 1036 | -9/Mines | Assembled infested the area 1106 | -9/Mines | YI-UF0 nonchalantly dropped a Grenade Launcher on the ground 1150 | -9/Mines | Learned Materials stockpile data 1162 | -9/Mines | Assisted by bots powering up and referring to "LRC-V3" 1214 | -9/Mines | Deemed a non-threat by the Exiles lab entrance 1214 | -9/Mines | Discovered new exit (range 5) 1217 | -9/Mines | Identified exit to Exiles 1220 | -9/Mines | Entered Exiles 1220 | -9/Exiles | Accompanied by 3 allies 1236 | -9/Exiles | Met 8R-AWN 1244 | -9/Exiles | Met EX-HEX 1258 | -9/Exiles | Met EX-BIN 1265 | -9/Exiles | Aligned with FarCom system 1266 | -9/Exiles | Given EX-Vault access code 1288 | -9/Exiles | Opened EX-Vault 1294 | -9/Exiles | Found YOLO Cannon 1306 | -9/Exiles | Warned to stay clear of 0b10 Research branches 1322 | -9/Exiles | Met EX-DEC 1327 | -9/Exiles | Learned location of Zion (-7) 1349 | -9/Exiles | Visited The Gauntlet 1425 | -9/Exiles | Discovered new exit (range 10) 1471 | -9/Exiles | Left Exiles lab with YOLO Cannon 1471 | -9/Exiles | Entered Mines 1471 | -8/Mines | Accompanied by 3 allies 1698 | -8/Mines | Discovered exit to Materials (range 5) 1813 | -8/Mines | Entered Materials 1813 | -8/Materials | Evolved 2 slots: Utility x2 1814 | -8/Materials | Identified exit to Storage 2178 | -8/Materials | Discovered new exit (range 8) 2220 | -8/Materials | Repaired Lgt. Nuclear Core 2435 | -8/Materials | Build established: Scavenger-Mutant 2822 | -8/Materials | Destroyed 7 combat bots 2882 | -8/Materials | Entered Storage 2931 | -8/Storage | Repaired Flight Unit 2938 | -8/Storage | Met a pair of Derelict thieves 2970 | -8/Storage | Garrison activated, responded to threat 3081 | -8/Storage | Identified exit to Garrison 3081 | -8/Storage | Entered Garrison 3106 | -8/Garrison | Triggered checkpoint 3107 | -8/Garrison | Build established: Scavenger-Sprinter 3204 | -8/Garrison | Discovered new exit (range 14) 3216 | -8/Garrison | Learned Factory security intel 3218 | -8/Garrison | Triggered checkpoint 3311 | -8/Garrison | Garrison Relay disabled 3343 | -8/Garrison | Discovered new exit (range 8) 3406 | -8/Garrison | Triggered checkpoint 3447 | -8/Garrison | Triggered checkpoint 3472 | -8/Garrison | Triggered checkpoint 3594 | -8/Garrison | Garrison Relay disabled 3681 | -8/Garrison | Triggered checkpoint 3701 | -8/Garrison | Garrison Relay disabled 4097 | -8/Garrison | Discovered new exit (range 12) 4139 | -8/Garrison | Rescued a captive Derelict 4139 | -8/Garrison | Rescued a captive Derelict 4190 | -8/Garrison | Build established: Scavenger-Mutant 4289 | -8/Garrison | Entered Factory 4289 | -7/Factory | Accompanied by 2 allies 4289 | -7/Factory | Evolved 2 slots: Utility x2 4312 | -7/Factory | Identified exit to DSF 4312 | -7/Factory | Entered DSF 4312 | -7/DSF | Met a pair of Sappers preparing to destroy DSF 4312 | -7/DSF | Accompanied by 2 allies 4331 | -7/DSF | Core integrity fell below 50% 4333 | -7/DSF | Additional patrols routed to DSF 4334 | -7/DSF | Core destroyed Last Messages --------------- 04320_ H8-EMC: "Hurry!" 04320_ K3-BOM: "This is your fault, H8-EMC." 04320_ Adv. Heat Sink destroyed. 04323_ Particle Charger destroyed. 04323_ Imp. Ion Engine destroyed. 04325_ H-61 Shepherd calls for reinforcements. 04325_ ALERT: Hostile activity reported, dispatching reinforcements to area. 04327_ Adv. Assault Cannon destroyed. 04327_ Cesium-ion Thruster destroyed. 04327_ Prc. Beam Rifle destroyed. 04328_ Cesium-ion Thruster destroyed. 04328_ Flight Unit destroyed. 04329_ A-02 Transporter destroyed. 04329_ Acquired Enh. Optical Array. 04330_ A-02 Transporter destroyed. 04333_ DSF_097 integrity compromised, routing additional patrols. 04333_ Dropped Imp. Ion Engine. 04333_ Acquired Fission Core. 04334_ Propulsion Shielding destroyed. 04334_ Imp. VTOL Module destroyed. Map ----- +----------------------------------------------------+ | ???????????????## ##?# | | ???????????????# ## | | ??????????????## """" | | ??????????????# " | | ??????????????# | | ??????????????# % | | ??????????????# | | ??????????????# | | ???????????????# | | ???????????????# | | ??????????????## | | ??????????????# ] | | ?????????????## ! | | ?????????????# !! ] | | ?????????????# !! | | ?????????????# | | ?????????????# | | ?????????????# ] | | ????????????## | | ??????#?????#;; | | ??????#!!???#!!! ! | | ??????#!! ##!!! !# | | ??????#]] = ? | | ??????#]] ! ?? | | ??????#]] ! ?? | | ??????#!! ## *@ !?? | | ??????#!! ??# ;* * ??? | | ??????###???###;;; ;; ??? | | ??????????????### ???? | | ????????????????####; ???? | | ????????????????????;! ; ???? | | ????????????????????;;; ;; #### ????? | | ????????g???????????? !!; #????????? | | ????????????????????? !!; ####????????? | | ?????????g??????????? !!###???????????? | | ??????????????????????# ###?????????????? | | ??????????????????????? #???????????????? | | ??????????g???????????? ???????????????? | | ???????????????????????? ??????????????? | | ???????????????????????? ??????????????? | | ????????????????????????? #?????????????? | | ?????????????????????????####?????????????? | | ??????????????????????????????????????????? | | ??????????????????????????????????????????? | | ??????????????????????????????????????????? | | ??????????????????????????????????????????? | | ??????????????????????????????????????????? | | ??????????????????????????????????????????? | | ??????????????????????????????????????????? | | | +----------------------------------------------------+ Best States ------------- Heat Dissipation 50 Energy Generation 14 Energy Capacity 280 Matter Stores 300 Matter Capacity 300 Sight Range 22 Terrain Scan Range 16 Terrain Scan Density 10 Additional Mass Support 9 Armor Coverage 150 Resistance: TH 10 Propulsion Shielding 33 Evasion (%) 64 Targeting Accuracy 5 Particle Charging 15 Offensive Hacking 10 Authchip Count 2 Item Schematics ----------------- Imp. VTOL Module | -8/Materials | Scanalyzed Adv. Weight Redist. System | -8/Materials | Scanalyzed Robot Schematics ------------------ O-16 Technician | -10/Materials | Hacked Fabricated ------------ Nothing Alien Tech Used ----------------- None Achievements -------------- None Challenges ------------ None Game ------ Seed SystemSwarmBay Manual? 0 Play Time 01:15:50 Cumulative 94.5 hours Start 2024.02.01 @ 14:32:25 End 2024.02.01 @ 15:47:19 Sessions 1 Manual Loads 0 Difficulty Rogue Special Mode None Game No. 57 Rogue 57 Adventurer 0 Explorer 0 Win Type - Total 0 Types 0/0/0/0/0/0/0/0/0 Lore% 57 Gallery% 56 Achievement% 48 Wizard Run 0 Options --------- ASCII 0 Keyboard 1 Movement Arrows Keybinds 0 Fullscreen 1 Font 12/Proggy Map View 83x54 Tactical HUD 1 Map Filters NONE Filters NONE Steam 0 RUN: 53145b6f-282b-43cd-a153-9a2ae324f474